bitfinex/quotes_BTCUSD_20250328
["timestamp","ask_amount","ask_price","bid_price","bid_amount"]
[1743128510096,0.16664497,87413.0,87412.0,0.004]
[1743128510463,0.16664497,87413.0,87412.0,0.006]
[1743128510663,0.16664497,87413.0,87412.0,0.002]
[1743128511071,0.16664497,87413.0,87412.0,0.003]
[1743128511231,0.16664497,87413.0,87412.0,0.002]
[1743128511433,0.19636123,87413.0,87412.0,0.002]
[1743128511653,0.19636123,87413.0,87412.0,0.003]
[1743128511859,0.19636123,87413.0,87412.0,0.002]
[1743128512057,0.1287,87409.0,87402.0,0.10296117]
[1743128512265,0.1287,87407.0,87402.0,0.10296117]
[1743128512477,0.0764,87407.0,87402.0,0.10296117]
[1743128512684,0.0472,87406.0,87402.0,0.10296117]
[1743128513000,0.0764,87405.0,87402.0,0.10296117]
[1743128513231,0.0764,87403.0,87402.0,0.10396117]
[1743128513819,0.08495656,87403.0,87402.0,0.10396117]
[1743128514019,0.10289467,87403.0,87402.0,0.10396117]
[1743128514455,0.10289467,87403.0,87402.0,0.10296117]
[1743128514568,0.10289467,87403.0,87402.0,0.002]
[1743128515943,0.10289467,87403.0,87402.0,0.004]
[1743128516690,0.10289467,87403.0,87402.0,0.002]
[1743128516906,0.10289467,87403.0,87402.0,0.004]
[1743128517507,0.10289467,87403.0,87402.0,0.002]
[1743128517906,0.10289467,87403.0,87402.0,0.004]
[1743128518109,0.11790414,87403.0,87402.0,0.004]
[1743128518679,0.10289467,87403.0,87402.0,0.004]
[1743128518818,0.15119467,87403.0,87402.0,0.004]
[1743128526749,0.13325656,87403.0,87402.0,0.004]
[1743128526986,0.00855656,87403.0,87402.0,0.004]
[1743128527191,0.00855656,87403.0,87402.0,0.11825764]
[1743128527397,0.00061317,87413.0,87402.0,0.11825764]
[1743128527623,0.00061317,87413.0,87403.0,0.11425764]
[1743128528029,0.00061317,87413.0,87403.0,0.12551457]
[1743128529202,0.01793652,87411.0,87403.0,0.12551457]
[1743128531251,0.00061317,87413.0,87403.0,0.12551457]
[1743128531412,0.00061317,87413.0,87404.0,0.00228806]
[1743128531598,0.00061317,87413.0,87405.0,0.11425764]
[1743128532043,0.00061317,87413.0,87405.0,0.11654561]
[1743128532607,0.00061317,87413.0,87405.0,0.11425764]
[1743128535602,0.00061317,87413.0,87405.0,0.11725764]
[1743128538564,0.00859535,87412.0,87405.0,0.11725764]
[1743128538976,0.02653116,87412.0,87405.0,0.11725764]
[1743128539388,0.02653116,87412.0,87405.0,0.11525764]
[1743128539791,0.02653116,87412.0,87405.0,0.11725764]
[1743128541139,0.02653116,87412.0,87405.0,0.11625764]
[1743128541877,0.02653116,87412.0,87405.0,0.11825764]
[1743128542082,0.01793581,87412.0,87405.0,0.11825764]
[1743128545364,0.01793581,87412.0,87405.0,0.11625764]
[1743128545766,0.01793581,87412.0,87405.0,0.11425764]
[1743128546190,0.01793581,87412.0,87405.0,0.11525764]
[1743128546473,0.01793581,87412.0,87405.0,0.11725764]
[1743128547646,0.01793581,87412.0,87405.0,0.11525764]
[1743128548220,0.00061317,87413.0,87405.0,0.11725764]
[1743128549196,0.00061317,87413.0,87405.0,0.11525764]
[1743128549422,0.00061317,87413.0,87405.0,0.11725764]
[1743128550550,0.00061317,87413.0,87405.0,0.11625764]
[1743128550779,0.00061317,87413.0,87405.0,0.11525764]
[1743128551187,0.00061317,87413.0,87405.0,0.11725764]
[1743128551333,0.00061317,87413.0,87405.0,0.11825764]
[1743128551825,0.01793545,87412.0,87405.0,0.11825764]
[1743128553424,0.01793545,87412.0,87405.0,0.11725764]
[1743128553642,0.01793545,87412.0,87405.0,0.11625764]
[1743128553883,0.0828,87411.0,87405.0,0.11525764]
[1743128554118,0.00859519,87410.0,87405.0,0.11725764]
[1743128555253,0.00859519,87410.0,87405.0,0.11425764]
[1743128555509,0.00859519,87410.0,87405.0,0.11625764]
[1743128555708,0.00859519,87410.0,87405.0,0.11825764]
[1743128556943,0.00859519,87410.0,87405.0,0.11625764]
[1743128557385,0.00859519,87410.0,87405.0,0.11825764]
[1743128557558,0.01854926,87413.0,87405.0,0.11825764]
[1743128557729,0.01854926,87413.0,87405.0,0.11625764]
[1743128557979,0.00858521,87412.0,87405.0,0.11425764]
[1743128558601,0.00858521,87412.0,87405.0,0.11525764]
[1743128559051,0.00858521,87412.0,87405.0,0.11625764]
[1743128559240,0.00858521,87412.0,87405.0,0.11525764]
[1743128560072,0.00858521,87412.0,87405.0,0.11425764]
[1743128560474,0.00858521,87412.0,87405.0,0.11525764]
[1743128560972,0.00858521,87412.0,87405.0,0.11425764]
[1743128561177,0.01854926,87413.0,87405.0,0.11425764]
[1743128561384,0.0085842,87411.0,87405.0,0.11525764]
[1743128561581,0.01854926,87413.0,87405.0,0.11525764]
[1743128561721,0.0085842,87410.0,87405.0,0.11525764]
[1743128561964,0.01854926,87413.0,87405.0,0.11525764]
[1743128562366,0.01854926,87413.0,87405.0,0.11725764]
[1743128562825,0.01854926,87413.0,87405.0,0.11625764]
[1743128563390,0.01854926,87413.0,87405.0,0.11425764]
[1743128563595,0.00061317,87413.0,87405.0,0.11625764]
[1743128564000,0.00061317,87413.0,87405.0,0.11725764]
[1743128564817,0.00061317,87413.0,87405.0,0.11525764]
[1743128565189,0.00061317,87413.0,87405.0,0.11625764]
[1743128566848,0.01854872,87413.0,87405.0,0.11625764]
[1743128573694,0.00061317,87413.0,87405.0,0.11625764]
[1743128578097,0.01793545,87412.0,87405.0,0.11625764]
[1743128579196,0.01793545,87412.0,87405.0,0.11525764]
[1743128580076,0.01793545,87412.0,87405.0,0.11625764]
[1743128580274,0.01793545,87412.0,87405.0,0.11725764]
[1743128583371,0.09413545,87412.0,87405.0,0.11725764]
[1743128583570,0.09413545,87412.0,87405.0,0.003]
[1743128583705,0.00859978,87411.0,87405.0,0.003]
[1743128584620,0.00859978,87411.0,87405.0,0.002]
[1743128584929,0.00859978,87411.0,87405.0,0.003]
[1743128585792,0.00859978,87411.0,87405.0,0.001]
[1743128585991,0.00859978,87411.0,87405.0,0.003]
[1743128587617,0.01793717,87410.0,87405.0,0.003]
[1743128587937,0.00859529,87409.0,87405.0,0.003]
[1743128588555,0.00859529,87409.0,87405.0,0.001]
[1743128588894,0.00859529,87409.0,87405.0,0.003]
[1743128589294,0.00859529,87409.0,87405.0,0.001]
[1743128589614,0.00859529,87409.0,87405.0,0.002]
[1743128590362,0.00859529,87409.0,87400.0,0.0003388]
[1743128590497,0.00859529,87409.0,87405.0,0.002]
[1743128590695,0.00859529,87409.0,87405.0,0.004]
[1743128591458,0.00859529,87409.0,87405.0,0.002]
[1743128593675,0.00859529,87409.0,87405.0,0.004]
[1743128594440,0.0001695,87412.0,87405.0,0.004]
[1743128594654,0.00858794,87411.0,87405.0,0.004]
[1743128595321,0.00858794,87411.0,87405.0,0.002]
[1743128595622,0.00858794,87411.0,87405.0,0.003]
[1743128596167,0.00858794,87411.0,87405.0,0.002]
[1743128596392,0.00858794,87411.0,87401.0,0.11425764]
[1743128596595,0.00858794,87411.0,87405.0,0.003]
[1743128597308,0.00858794,87411.0,87405.0,0.002]
[1743128597608,0.00858794,87411.0,87405.0,0.003]
[1743128597928,0.00858794,87411.0,87406.0,0.11425764]
[1743128598336,0.0001695,87412.0,87406.0,0.11425764]
[1743128598909,0.01793603,87411.0,87406.0,0.11425764]
[1743128599529,0.01793603,87411.0,87406.0,0.11525764]
[1743128599840,0.01793603,87411.0,87406.0,0.11625764]
[1743128600135,0.01793603,87411.0,87406.0,0.11525764]
[1743128600567,0.01793603,87411.0,87406.0,0.11725764]
[1743128604533,0.0001695,87412.0,87406.0,0.11725764]
[1743128605471,0.0001695,87412.0,87406.0,0.11525764]
[1743128605676,0.0001695,87412.0,87406.0,0.11425764]
[1743128605834,0.0001695,87412.0,87406.0,0.11625764]
[1743128607790,0.01793583,87411.0,87406.0,0.11625764]
[1743128608866,0.01793583,87411.0,87406.0,0.11525764]
[1743128609074,0.00858794,87410.0,87406.0,0.11625764]
[1743128609229,0.00858794,87410.0,87406.0,0.11725764]
[1743128609572,0.00858794,87410.0,87406.0,0.003]
[1743128610000,0.00858794,87410.0,87400.0,0.0003388]
[1743128610330,0.16962338,87410.0,87406.0,0.002]
[1743128610467,0.0756,87409.0,87406.0,0.003]
[1743128611111,0.00860106,87408.0,87406.0,0.003]
[1743128611534,0.00860106,87408.0,87406.0,0.001]
[1743128612134,0.01993118,87408.0,87406.0,0.001]
[1743128612390,0.00860106,87408.0,87406.0,0.001]
[1743128612814,0.02339302,87408.0,87406.0,0.002]
[1743128612982,0.0773,87407.0,87406.0,0.004]
[1743128613223,0.08588367,87407.0,87406.0,0.004]
[1743128613408,0.08588367,87407.0,87406.0,0.002]
[1743128613600,0.08588367,87407.0,87406.0,0.004]
[1743128613900,0.14408424,87407.0,87406.0,0.002]
[1743128614305,0.13248367,87407.0,87406.0,0.003]
[1743128614739,0.13248367,87407.0,87406.0,0.001]
[1743128614955,0.43248367,87407.0,87406.0,0.001]
[1743128615158,0.43248367,87407.0,87406.0,0.002]
[1743128615159,0.45559355,87407.0,87406.0,0.002]
[1743128615590,0.45559355,87407.0,87406.0,0.001]
[1743128615797,0.45559355,87407.0,87406.0,0.003]
[1743128616117,0.50237153,87407.0,87406.0,0.001]
[1743128616513,0.3,87406.0,87400.0,0.0003388]
[1743128616762,0.3,87402.0,87400.0,0.0003388]
[1743128616969,0.66581764,87401.0,87400.0,0.0003388]
[1743128617310,0.75352062,87401.0,87400.0,0.0003388]
[1743128618357,0.77146162,87401.0,87400.0,0.0003388]
[1743128618723,0.69229663,87401.0,87400.0,0.0003388]
[1743128619046,0.56433663,87401.0,87400.0,0.0003388]
[1743128619262,0.69229663,87401.0,87400.0,0.0003388]
[1743128619997,2.25981413,87401.0,87400.0,0.0003388]
[1743128620192,2.66044613,87401.0,87400.0,0.0003388]
[1743128620416,2.77470377,87401.0,87400.0,0.0003388]
[1743128620621,2.78322021,87401.0,87400.0,0.0003388]
[1743128621442,2.78522021,87401.0,87400.0,0.0003388]
[1743128621847,2.78322021,87401.0,87400.0,0.0003388]
[1743128622170,2.78522021,87401.0,87400.0,0.0003388]
[1743128622582,2.36786056,87401.0,87400.0,0.0003388]
[1743128622870,2.36886056,87401.0,87400.0,0.0003388]
[1743128623208,2.36786056,87401.0,87400.0,0.0003388]
[1743128623427,2.36586056,87401.0,87400.0,0.0003388]
[1743128623624,2.36886056,87401.0,87400.0,0.0003388]
[1743128624046,2.36786056,87401.0,87400.0,0.0003388]
[1743128624285,2.36886056,87401.0,87400.0,0.0003388]
[1743128624688,2.35091956,87401.0,87400.0,0.0003388]
[1743128625049,2.34891956,87401.0,87400.0,0.0003388]
[1743128625234,2.34991956,87401.0,87400.0,0.0003388]
[1743128626070,2.38266496,87401.0,87400.0,0.0003388]
[1743128627034,2.38262496,87401.0,87400.0,0.0003388]
[1743128627642,2.40056938,87401.0,87400.0,0.0003388]
[1743128628896,2.28631174,87401.0,87400.0,0.0003388]
[1743128629087,2.24291734,87401.0,87400.0,0.0003388]
[1743128629595,0.74731734,87401.0,87400.0,0.0003388]
[1743128630876,2.71305434,87401.0,87400.0,0.0003388]
[1743128631079,2.34967834,87401.0,87400.0,0.0003388]
[1743128631285,2.41382398,87401.0,87400.0,0.0003388]
[1743128631492,2.25540834,87401.0,87400.0,0.0003388]
[1743128634585,2.23746392,87401.0,87400.0,0.0003388]
[1743128636007,2.23780272,87401.0,87400.0,0.0003388]
[1743128637653,2.2557465,87401.0,87400.0,0.0003388]
[1743128639059,2.34594607,87401.0,87400.0,0.0003388]
[1743128640098,2.2557465,87401.0,87400.0,0.0003388]
[1743128641547,2.07476921,87401.0,87400.0,0.0003388]
[1743128641762,1.14951521,87401.0,87400.0,0.0003388]
[1743128641908,1.16405606,87401.0,87400.0,0.0003388]
[1743128645491,1.14611228,87401.0,87400.0,0.0003388]
[1743128646658,1.10101228,87401.0,87400.0,0.0003388]
[1743128647195,0.67109528,87401.0,87400.0,0.0003388]
[1743128647532,1.18032328,87401.0,87400.0,0.0003388]
[1743128647997,1.29458092,87401.0,87400.0,0.0003388]
[1743128648402,1.31252375,87401.0,87400.0,0.0003388]
[1743128649431,1.35026915,87401.0,87400.0,0.0003388]
[1743128649996,1.34526915,87401.0,87400.0,0.0003388]
[1743128650254,0.93670011,87401.0,87400.0,0.0003388]
[1743128650371,0.72340566,87401.0,87400.0,0.0003388]
[1743128650590,0.68903811,87401.0,87400.0,0.0003388]
[1743128650859,0.85828211,87401.0,87400.0,0.0003388]
[1743128651382,0.89266331,87401.0,87400.0,0.0003388]
[1743128651566,0.81409269,87401.0,87400.0,0.0003388]
[1743128652101,0.72341931,87401.0,87400.0,0.0003388]
[1743128653362,0.63037846,87401.0,87400.0,0.0003388]
[1743128653538,0.47745846,87401.0,87400.0,0.0003388]
[1743128653738,0.63037846,87401.0,87400.0,0.0003388]
[1743128654864,0.61243563,87401.0,87400.0,0.0003388]
[1743128658017,0.63037803,87401.0,87400.0,0.0003388]
[1743128658230,0.66933165,87401.0,87400.0,0.0003388]
[1743128658641,0.60537803,87401.0,87400.0,0.0003388]
[1743128658846,0.63037803,87401.0,87400.0,0.0003388]
[1743128659647,0.60537803,87401.0,87400.0,0.0003388]
[1743128661239,0.63037803,87401.0,87400.0,0.0003388]
[1743128664899,0.60537803,87401.0,87400.0,0.0003388]
[1743128665109,0.47745803,87401.0,87400.0,0.0003388]
[1743128665316,0.60537803,87401.0,87400.0,0.0003388]
[1743128665511,0.6886042,87401.0,87400.0,0.0003388]
[1743128666145,0.58743563,87401.0,87400.0,0.0003388]
[1743128668187,0.61243563,87401.0,87400.0,0.0003388]
[1743128668584,0.63037819,87401.0,87400.0,0.0003388]
[1743128674372,0.72731904,87401.0,87400.0,0.0003388]
[1743128674538,0.70937648,87401.0,87400.0,0.0003388]
[1743128674740,0.82363412,87401.0,87400.0,0.0003388]
[1743128675118,4.97771412,87401.0,87400.0,0.0003388]
[1743128675344,5.36207712,87401.0,87400.0,0.0003388]
[1743128676360,4.18893212,87401.0,87400.0,0.0003388]
[1743128677053,4.02354612,87401.0,87400.0,0.0003388]
[1743128677673,4.04148945,87401.0,87400.0,0.0003388]
[1743128678417,3.94761945,87401.0,87400.0,0.0003388]
[1743128678614,3.31847245,87401.0,87400.0,0.0003388]
[1743128679322,0.88977745,87401.0,87400.0,0.0003388]
[1743128679865,2.75794845,87401.0,87400.0,0.0003388]
[1743128680193,2.55589545,87401.0,87400.0,0.0003388]
[1743128680416,0.025,87394.0,87377.0,0.0003388]
[1743128680615,0.3,87392.0,87377.0,0.0003388]
[1743128680943,0.3,87390.0,87377.0,0.0003388]
[1743128681078,0.41425764,87390.0,87377.0,0.0003388]
[1743128681479,0.44047673,87390.0,87377.0,0.0003388]
[1743128682994,0.44147673,87390.0,87377.0,0.0003388]
[1743128683211,0.4914244,87390.0,87377.0,0.0003388]
[1743128684542,0.47348035,87390.0,87377.0,0.0003388]
[1743128686079,0.55668035,87390.0,87377.0,0.0003388]
[1743128686502,0.55768035,87390.0,87377.0,0.0003388]
[1743128686787,0.58082731,87390.0,87377.0,0.0003388]
[1743128687450,0.59877161,87390.0,87377.0,0.0003388]
[1743128690378,0.51557161,87390.0,87377.0,0.0003388]
[1743128690554,0.46562394,87390.0,87377.0,0.0003388]
[1743128691182,0.59354394,87390.0,87377.0,0.0003388]
[1743128694577,0.57559964,87390.0,87377.0,0.0003388]
[1743128697716,0.59354394,87390.0,87377.0,0.0003388]
[1743128702334,0.59354394,87390.0,87379.0,0.0755]
[1743128704505,0.57559964,87390.0,87379.0,0.0755]
[1743128704721,0.6361596,87390.0,87379.0,0.0755]
[1743128705185,0.57559964,87390.0,87379.0,0.0755]
[1743128707660,0.59354285,87390.0,87379.0,0.0755]
[1743128708937,0.59354285,87390.0,87377.0,0.0003388]
[1743128710885,0.46562285,87390.0,87377.0,0.0003388]
[1743128711201,0.59350285,87390.0,87377.0,0.0003388]
[1743128714537,0.57555964,87390.0,87377.0,0.0003388]
[1743128714700,0.6361156,87390.0,87377.0,0.0003388]
[1743128717740,0.6540599,87390.0,87377.0,0.0003388]
[1743128718125,0.68844317,87390.0,87377.0,0.0003388]
[1743128718640,0.6540599,87390.0,87377.0,0.0003388]
[1743128722463,0.5261799,87390.0,87377.0,0.0003388]
[1743128722596,0.6540599,87390.0,87377.0,0.0003388]
[1743128723900,0.59350394,87390.0,87377.0,0.0003388]
[1743128724704,0.57555964,87390.0,87377.0,0.0003388]
[1743128726596,0.333422,87390.0,87377.0,0.0003388]
[1743128726803,0.461302,87390.0,87384.0,0.131]
[1743128727703,0.47924645,87390.0,87384.0,0.131]
[1743128730492,0.35136645,87390.0,87384.0,0.131]
[1743128730825,0.35136645,87390.0,87389.0,0.078939]
[1743128731392,0.02821949,87390.0,87389.0,0.078939]
[1743128731595,0.02821949,87390.0,87389.0,0.128439]
[1743128732404,0.02721949,87390.0,87389.0,0.128439]
[1743128733008,0.02821949,87390.0,87389.0,0.128439]
[1743128733342,0.02621949,87390.0,87389.0,0.128439]
[1743128733541,0.02721949,87390.0,87389.0,0.128439]
[1743128733859,0.02821949,87390.0,87389.0,0.128439]
[1743128737434,0.02821949,87390.0,87389.0,0.24269664]
[1743128737666,0.002,87390.0,87389.0,0.24269664]
[1743128737805,0.01994064,87390.0,87389.0,0.24269664]
[1743128744589,0.002,87390.0,87389.0,0.24269664]
[1743128747611,0.01994089,87390.0,87389.0,0.24269664]
[1743128754530,0.002,87390.0,87389.0,0.24269664]
[1743128754737,0.002,87390.0,87389.0,0.000339]
[1743128755186,0.01039113,87390.0,87389.0,0.000339]
[1743128755385,0.002,87390.0,87389.0,0.000339]
[1743128755590,0.01039113,87390.0,87389.0,0.000339]
[1743128755751,0.002,87390.0,87389.0,0.19599664]
[1743128755951,0.01039113,87390.0,87389.0,0.19599664]
[1743128756305,0.002,87390.0,87389.0,0.19599664]
[1743128756466,0.001,87390.0,87389.0,0.24409664]
[1743128756665,0.00057887,87400.0,87389.0,0.24409664]
[1743128756883,0.00839018,87399.0,87390.0,0.11425764]
[1743128757452,0.02347069,87398.0,87390.0,0.11425764]
[1743128757667,0.01794029,87397.0,87390.0,0.11425764]
[1743128760154,0.01894029,87397.0,87390.0,0.11425764]
[1743128760473,0.01994029,87397.0,87390.0,0.11425764]
[1743128762366,0.01994029,87397.0,87389.0,0.000339]
[1743128762572,0.0102458,87396.0,87389.0,0.000339]
[1743128762748,0.01866316,87396.0,87389.0,0.000339]
[1743128763141,0.04211404,87396.0,87389.0,0.000339]
[1743128763763,0.04311404,87396.0,87389.0,0.000339]
[1743128764183,0.03286824,87396.0,87389.0,0.000339]
[1743128765182,0.03386824,87396.0,87389.0,0.000339]
[1743128768116,0.01794042,87395.0,87389.0,0.000339]
[1743128768854,0.00841008,87394.0,87389.0,0.000339]
[1743128770347,0.00941008,87394.0,87389.0,0.000339]
[1743128771468,0.01041008,87394.0,87389.0,0.000339]
[1743128779956,0.04010159,87394.0,87389.0,0.000339]
[1743128780105,0.0455,87393.0,87389.0,0.000339]
[1743128780309,0.00841296,87392.0,87389.0,0.000339]
[1743128781447,0.3,87391.0,87389.0,0.000339]
[1743128782016,0.08491296,87390.0,87389.0,0.000339]
[1743128782364,0.38491296,87390.0,87389.0,0.000339]
[1743128783950,0.38591296,87390.0,87389.0,0.000339]
[1743128784988,0.38691296,87390.0,87389.0,0.000339]
[1743128787775,0.40485619,87390.0,87389.0,0.000339]
[1743128794735,0.38691296,87390.0,87389.0,0.000339]
[1743128795263,0.44527934,87390.0,87389.0,0.000339]
[1743128795487,0.47027934,87390.0,87389.0,0.000339]
[1743128795843,0.44527934,87390.0,87389.0,0.000339]
[1743128796038,0.47027934,87390.0,87389.0,0.000339]
[1743128796238,0.55953698,87390.0,87389.0,0.000339]
[1743128796596,0.58453698,87390.0,87389.0,0.000339]
[1743128797511,0.55753698,87390.0,87389.0,0.000339]
[1743128797712,0.57548202,87390.0,87389.0,0.000339]
[1743128797930,0.57848202,87390.0,87389.0,0.000339]
[1743128798326,0.58148202,87390.0,87389.0,0.000339]
[1743128798548,0.57848202,87390.0,87389.0,0.000339]
[1743128798754,0.57548202,87390.0,87389.0,0.000339]
[1743128798955,0.58148202,87390.0,87389.0,0.000339]
[1743128799435,0.57548202,87390.0,87389.0,0.000339]
[1743128800621,0.57848202,87390.0,87389.0,0.000339]
[1743128800935,0.57548202,87390.0,87389.0,0.000339]
[1743128801285,0.57848202,87390.0,87389.0,0.000339]
[1743128801811,0.58148202,87390.0,87389.0,0.000339]
[1743128801971,0.57848202,87390.0,87389.0,0.000339]
[1743128802180,0.57548202,87390.0,87389.0,0.000339]
[1743128802383,0.52011564,87390.0,87389.0,0.000339]
[1743128802931,0.52311564,87390.0,87389.0,0.000339]
[1743128803511,0.536698,87390.0,87389.0,0.000339]
[1743128803717,0.533698,87390.0,87389.0,0.000339]
[1743128804736,0.51575296,87390.0,87389.0,0.000339]
[1743128804934,0.57422334,87390.0,87389.0,0.000339]
[1743128805149,0.68848098,87390.0,87389.0,0.000339]
[1743128805419,0.69148098,87390.0,87389.0,0.000339]
[1743128806751,0.6330106,87390.0,87389.0,0.000339]
[1743128808534,0.44225296,87390.0,87389.0,0.000339]
[1743128809218,0.46019701,87390.0,87389.0,0.000339]
[1743128814547,0.44225296,87390.0,87389.0,0.000339]
[1743128817230,0.31441296,87390.0,87389.0,0.000339]
[1743128817428,0.44221296,87390.0,87389.0,0.000339]
[1743128817636,0.46015675,87390.0,87389.0,0.000339]
[1743128818752,0.45715675,87390.0,87389.0,0.000339]
[1743128819127,0.33235675,87390.0,87389.0,0.000339]
[1743128819536,0.32935675,87390.0,87389.0,0.000339]
[1743128819913,0.33235675,87390.0,87389.0,0.000339]
[1743128820363,0.32635675,87390.0,87389.0,0.000339]
[1743128820662,0.32935675,87390.0,87389.0,0.000339]
[1743128820867,0.33235675,87390.0,87389.0,0.000339]
[1743128824706,0.31441296,87390.0,87389.0,0.000339]
[1743128825348,0.31141296,87390.0,87389.0,0.000339]
[1743128825541,0.31441296,87390.0,87389.0,0.000339]
[1743128826098,0.31141296,87390.0,87389.0,0.000339]
[1743128826943,0.31441296,87390.0,87389.0,0.000339]
[1743128827607,0.33535615,87390.0,87389.0,0.000339]
[1743128829600,0.03535615,87390.0,87389.0,0.048639]
[1743128829810,0.03535615,87390.0,87389.0,0.23919664]
[1743128830202,0.02694319,87390.0,87389.0,0.23919664]
[1743128830859,0.02094319,87390.0,87389.0,0.23919664]
[1743128831186,0.02194319,87390.0,87389.0,0.23919664]
[1743128831563,0.01894319,87390.0,87389.0,0.23919664]
[1743128831764,0.02194319,87390.0,87389.0,0.23919664]
[1743128832367,0.01894319,87390.0,87389.0,0.23919664]
[1743128832577,0.01994319,87390.0,87389.0,0.23919664]
[1743128833340,0.01894319,87390.0,87389.0,0.23919664]
[1743128833473,0.00057887,87400.0,87389.0,0.23919664]
[1743128833671,0.00057887,87400.0,87390.0,0.11654595]
[1743128833896,0.00833675,87399.0,87390.0,0.11654595]
[1743128834138,0.00057887,87400.0,87390.0,0.11654595]
[1743128834600,0.00057887,87400.0,87391.0,0.0451]
[1743128834811,0.00057887,87400.0,87393.0,0.077]
[1743128834812,0.003,87400.0,87393.0,0.077]
[1743128835143,0.08139098,87418.0,87395.0,0.077]
[1743128835262,0.08139098,87418.0,87396.0,0.11654565]
[1743128835471,0.02239571,87412.0,87396.0,0.11654565]
[1743128835906,0.003,87400.0,87396.0,0.11654565]
[1743128836312,0.02239571,87412.0,87396.0,0.11654565]
[1743128836507,0.003,87400.0,87396.0,0.11654565]
[1743128836999,0.01793881,87409.0,87396.0,0.11654565]
[1743128837182,0.001,87400.0,87396.0,0.11654565]
[1743128837754,0.001,87400.0,87396.0,0.11654566]
[1743128837951,0.02539571,87412.0,87396.0,0.11654566]
[1743128838166,0.01793891,87400.0,87391.0,0.04554377]
[1743128838379,0.01793891,87400.0,87392.0,0.11425764]
[1743128838596,0.003,87409.0,87392.0,0.11425764]
[1743128839013,0.0179394,87399.0,87392.0,0.11425764]
[1743128843851,0.0179394,87399.0,87391.0,0.04588257]
[1743128844049,0.0179394,87399.0,87391.0,0.16014021]
[1743128844498,0.3,87411.0,87391.0,0.16014021]
[1743128844960,0.00846283,87410.0,87391.0,0.16014021]
[1743128846926,0.01146283,87410.0,87391.0,0.16014021]
[1743128847749,0.0179392,87406.0,87391.0,0.16014021]
[1743128848286,0.00846283,87405.0,87391.0,0.16014021]
[1743128849429,0.01146283,87405.0,87391.0,0.16014021]
[1743128850748,0.01446283,87405.0,87391.0,0.16014021]
[1743128851770,0.01446283,87405.0,87392.0,0.11654578]
[1743128851973,0.01446283,87405.0,87392.0,0.11425764]
[1743128852228,0.01146283,87405.0,87392.0,0.11425764]
[1743128852540,0.01446283,87405.0,87392.0,0.11425764]
[1743128852892,0.01146283,87405.0,87392.0,0.11425764]
[1743128853099,0.00846283,87405.0,87392.0,0.11425764]
[1743128853295,0.01346283,87405.0,87392.0,0.11425764]
[1743128853729,0.01046283,87405.0,87392.0,0.11425764]
[1743128853929,0.01246283,87405.0,87392.0,0.11425764]
[1743128861488,0.01246283,87405.0,87391.0,0.00078257]
[1743128861662,0.01246283,87405.0,87391.0,0.11504021]
[1743128862473,0.01046283,87405.0,87391.0,0.11504021]
[1743128862871,0.01246283,87405.0,87391.0,0.11504021]
[1743128863277,0.01046283,87405.0,87391.0,0.11504021]
[1743128863507,0.01246283,87405.0,87391.0,0.11504021]
[1743128867478,0.01793969,87402.0,87391.0,0.11504021]
[1743128867892,0.00845702,87401.0,87391.0,0.11504021]
[1743128868352,0.02286097,87396.0,87391.0,0.11504021]
[1743128869108,0.00845702,87395.0,87391.0,0.11504021]
[1743128869796,0.00845702,87395.0,87391.0,0.11604021]
[1743128871081,0.00845702,87395.0,87391.0,0.11504021]
[1743128871457,0.00845702,87395.0,87391.0,0.11604021]
[1743128878264,0.02639717,87395.0,87391.0,0.11604021]
[1743128879092,0.02639717,87395.0,87391.0,0.00178257]
[1743128879501,0.0779,87394.0,87391.0,0.00178257]
[1743128879882,0.00845985,87393.0,87391.0,0.00178257]
[1743128881439,0.00845985,87393.0,87391.0,0.00278257]
[1743128881613,0.00845985,87393.0,87391.0,0.00178257]
[1743128881805,0.01794015,87395.0,87392.0,0.0794]
[1743128881945,0.00842521,87394.0,87392.0,0.0794]
[1743128882912,0.01794015,87395.0,87392.0,0.0794]
[1743128883964,0.01794015,87395.0,87392.0,0.0804]
[1743128884756,0.02328299,87404.0,87392.0,0.0804]
[1743128885051,0.00842521,87403.0,87392.0,0.0804]
[1743128885601,0.00842521,87403.0,87392.0,0.0794]
[1743128886256,0.00842521,87403.0,87391.0,0.11504021]
[1743128886420,0.00942521,87403.0,87391.0,0.11504021]
[1743128887158,0.00842521,87403.0,87391.0,0.11504021]
[1743128887574,0.00942521,87403.0,87391.0,0.11504021]
[1743128888082,0.01042521,87403.0,87391.0,0.11504021]
[1743128889041,0.01793973,87401.0,87391.0,0.11504021]
[1743128889392,0.26339731,87401.0,87391.0,0.00078257]
[1743128889602,0.11909324,87400.0,87391.0,0.00078257]
[1743128889793,0.3482,87399.0,87391.0,0.00078257]
[1743128890080,0.00845636,87398.0,87391.0,0.00078257]
[1743128890313,0.38455636,87398.0,87391.0,0.00078257]
[1743128890514,0.3761,87397.0,87391.0,0.00078257]
[1743128891164,0.3,87395.0,87391.0,0.00078257]
[1743128891762,0.00845636,87394.0,87391.0,0.00078257]
[1743128892580,0.00845636,87394.0,87391.0,0.00178257]
[1743128893402,0.00845636,87394.0,87391.0,0.00278257]
[1743128893897,0.00845636,87394.0,87391.0,0.00178257]
[1743128894251,0.00845636,87394.0,87391.0,0.00278257]
[1743128894449,0.3,87393.0,87391.0,0.00278257]
[1743128894650,0.0781,87390.0,87358.0,0.0792]
[1743128894873,0.3,87386.0,87377.0,0.0004049]
[1743128895087,0.3,87384.0,87377.0,0.0004049]
[1743128895658,0.00840945,87383.0,87377.0,0.0004049]
[1743128897621,0.01794506,87382.0,87377.0,0.0004049]
[1743128897870,0.3,87380.0,87377.0,0.0004049]
[1743128898448,0.00840945,87379.0,87377.0,0.0004049]
[1743128900440,0.00940945,87379.0,87377.0,0.0004049]
[1743128900758,0.01040945,87379.0,87377.0,0.0004049]
[1743128901164,0.02262664,87378.0,87377.0,0.0004049]
[1743128901724,0.03103609,87378.0,87377.0,0.0004049]
[1743128902433,0.03203609,87378.0,87377.0,0.0004049]
[1743128907067,0.47474746,87378.0,87377.0,0.0004049]
[1743128907221,0.6382051,87378.0,87377.0,0.0004049]
[1743128907623,0.65615136,87378.0,87377.0,0.0004049]
[1743128908249,0.65515136,87378.0,87377.0,0.0004049]
[1743128908654,0.65815136,87378.0,87377.0,0.0004049]
[1743128909042,0.65515136,87378.0,87377.0,0.0004049]
[1743128909678,0.65815136,87378.0,87377.0,0.0004049]
[1743128910036,0.65515136,87378.0,87377.0,0.0004049]
[1743128910459,0.66115136,87378.0,87377.0,0.0004049]
[1743128912198,0.59593999,87378.0,87377.0,0.0004049]
[1743128914616,0.57799373,87378.0,87377.0,0.0004049]
[1743128917524,0.59593948,87378.0,87377.0,0.0004049]